bitfinex/quotes_BTCUSD_20250617
["timestamp","ask_amount","ask_price","bid_price","bid_amount"]
[1750177488990,0.76513513,104320.0,104310.0,0.01104]
[1750177489202,0.93097513,104320.0,104310.0,0.01104]
[1750177490277,0.85597513,104320.0,104310.0,0.01104]
[1750177490492,1.02721689,104320.0,104310.0,0.01104]
[1750177491336,1.07829011,104320.0,104310.0,0.01104]
[1750177491620,1.83256039,104320.0,104310.0,0.01104]
[1750177491857,1.78148717,104320.0,104310.0,0.01104]
[1750177492107,1.41337689,104320.0,104310.0,0.01104]
[1750177492332,1.82764717,104320.0,104310.0,0.01104]
[1750177493001,1.41337689,104320.0,104310.0,0.01104]
[1750177493276,1.82764717,104320.0,104310.0,0.01104]
[1750177493730,1.92379639,104320.0,104310.0,0.01104]
[1750177493944,1.82764717,104320.0,104310.0,0.01104]
[1750177494610,1.66180717,104320.0,104310.0,0.01104]
[1750177494848,1.82760717,104320.0,104310.0,0.01104]
[1750177495742,1.20137689,104320.0,104310.0,0.01104]
[1750177495960,1.41333689,104320.0,104310.0,0.01104]
[1750177497110,1.20137689,104320.0,104310.0,0.01104]
[1750177497330,1.36717689,104320.0,104310.0,0.01104]
[1750177497981,1.78144717,104320.0,104310.0,0.01104]
[1750177498468,1.84721185,104320.0,104310.0,0.01104]
[1750177499629,1.84721185,104320.0,104300.0,0.0005466]
[1750177499630,1.10983392,104310.0,104300.0,0.0005466]
[1750177499845,1.20607568,104310.0,104300.0,0.0005466]
[1750177500784,1.20807568,104310.0,104300.0,0.0005466]
[1750177500996,1.25221642,104310.0,104300.0,0.0005466]
[1750177501215,1.22355416,104310.0,104300.0,0.0005466]
[1750177501427,1.22455416,104310.0,104300.0,0.0005466]
[1750177502130,1.43647416,104310.0,104300.0,0.0005466]
[1750177502606,0.7948054,104310.0,104300.0,0.0005466]
[1750177502840,1.11953483,104310.0,104300.0,0.0005466]
[1750177503083,1.11853483,104310.0,104300.0,0.0005466]
[1750177503343,1.11653483,104310.0,104300.0,0.0005466]
[1750177503583,0.88308455,104310.0,104300.0,0.0805466]
[1750177503817,1.29735483,104310.0,104300.0,0.0805466]
[1750177504090,1.35382186,104310.0,104300.0,0.0805466]
[1750177504290,1.42882186,104310.0,104300.0,0.0805466]
[1750177504504,1.35382186,104310.0,104300.0,0.0805466]
[1750177504939,0.72763158,104310.0,104300.0,0.0805466]
[1750177505161,0.94800645,104310.0,104300.0,0.0805466]
[1750177505376,1.19831307,104310.0,104300.0,0.0805466]
[1750177506237,1.35875483,104310.0,104300.0,0.0805466]
[1750177506471,1.35675483,104310.0,104300.0,0.0805466]
[1750177506686,1.35675483,104310.0,104300.0,0.0885466]
[1750177506927,1.35775483,104310.0,104300.0,0.0885466]
[1750177509136,1.37229568,104310.0,104300.0,0.0085466]
[1750177509683,1.10895322,104300.0,104290.0,4e-05]
[1750177509955,1.20519498,104300.0,104290.0,4e-05]
[1750177510926,1.61946526,104300.0,104290.0,4e-05]
[1750177510928,1.61946526,104300.0,104290.0,0.00404]
[1750177511137,1.3013442,104300.0,104290.0,4e-05]
[1750177511343,1.3013442,104300.0,104290.0,0.00204]
[1750177511547,1.3013442,104300.0,104290.0,0.00504]
[1750177511765,0.7909247,104300.0,104290.0,0.00504]
[1750177511967,1.20903498,104300.0,104290.0,0.00504]
[1750177512175,1.62330526,104300.0,104290.0,0.00504]
[1750177512588,1.62330526,104300.0,104290.0,0.00204]
[1750177512973,0.35560225,104290.0,104280.0,4e-05]
[1750177513210,1.49206457,104290.0,104280.0,4e-05]
[1750177513434,1.54206457,104290.0,104280.0,4e-05]
[1750177513678,0.36411085,104280.0,104270.0,4e-05]
[1750177513888,1.38504239,104280.0,104270.0,4e-05]
[1750177514654,1.41394884,104280.0,104270.0,4e-05]
[1750177515086,0.58540828,104280.0,104270.0,4e-05]
[1750177515355,1.41694884,104280.0,104270.0,0.00104]
[1750177516879,1.41694884,104280.0,104270.0,0.00204]
[1750177517530,1.58262884,104280.0,104270.0,0.00204]
[1750177517980,1.41694884,104280.0,104270.0,0.00204]
[1750177518251,1.62862884,104280.0,104270.0,0.00204]
[1750177518503,1.67862884,104280.0,104270.0,0.00204]
[1750177519602,0.07814085,104270.0,104260.0,4e-05]
[1750177519820,1.12927846,104270.0,104260.0,8.751e-05]
[1750177520039,1.12688213,104270.0,104260.0,8.751e-05]
[1750177521074,0.76633047,104260.0,104250.0,4e-05]
[1750177521280,0.86257223,104260.0,104250.0,4e-05]
[1750177521853,1.07425223,104260.0,104250.0,4e-05]
[1750177522140,0.93519428,104260.0,104250.0,4e-05]
[1750177522388,0.80287223,104260.0,104250.0,4e-05]
[1750177522598,0.99857138,104260.0,104250.0,4e-05]
[1750177523267,0.78693138,104260.0,104250.0,4e-05]
[1750177523494,1.02015052,104260.0,104250.0,4e-05]
[1750177523705,0.90465974,104260.0,104250.0,4e-05]
[1750177523914,0.90865974,104260.0,104250.0,0.00104]
[1750177524124,1.14914674,104260.0,104250.0,0.00104]
[1750177524558,1.15814674,104260.0,104250.0,0.00204]
[1750177524781,1.15810674,104260.0,104250.0,0.00204]
[1750177525002,1.08310674,104260.0,104250.0,0.00204]
[1750177525224,0.94646674,104260.0,104250.0,0.00204]
[1750177525673,0.58322634,104260.0,104250.0,0.11524]
[1750177525892,0.74886634,104260.0,104250.0,0.14774]
[1750177526162,0.22401047,104260.0,104250.0,0.34917884]
[1750177526388,0.39924178,104260.0,104250.0,0.35877089]
[1750177526602,0.39924178,104260.0,104250.0,0.34917875]
[1750177526603,0.46465065,104260.0,104250.0,0.34917875]
[1750177526820,0.22401065,104260.0,104250.0,0.34917875]
[1750177527034,0.22401065,104260.0,104250.0,0.3587708]
[1750177527488,0.22401065,104260.0,104250.0,0.36836266]
[1750177527702,0.22401065,104260.0,104250.0,0.3901062]
[1750177528132,0.22401065,104260.0,104250.0,0.39969797]
[1750177528349,0.22401065,104260.0,104250.0,0.40928965]
[1750177528350,0.02259057,104260.0,104250.0,0.40928965]
[1750177528569,0.04177236,104260.0,104250.0,0.40928965]
[1750177528758,0.04177218,104260.0,104250.0,0.40928965]
[1750177529041,0.04177218,104260.0,104250.0,0.39969797]
[1750177529042,0.32778347,104260.0,104250.0,0.39969797]
[1750177529256,0.31819271,104260.0,104250.0,0.39969797]
[1750177529468,0.03218188,104260.0,104250.0,0.40928965]
[1750177529683,0.0417731,104260.0,104250.0,0.39969797]
[1750177529909,0.03218188,104260.0,104250.0,0.39969788]
[1750177530130,0.0417731,104260.0,104250.0,0.39969788]
[1750177530350,0.02259057,104260.0,104250.0,0.39969788]
[1750177530560,0.03218124,104260.0,104250.0,0.39969788]
[1750177530780,0.04177209,104260.0,104250.0,0.39969788]
[1750177530995,0.013,104260.0,104250.0,0.39969788]
[1750177531207,0.03218142,104260.0,104250.0,0.39969788]
[1750177531421,0.12636386,104260.0,104250.0,0.39969797]
[1750177531634,0.10718142,104260.0,104250.0,0.40928965]
[1750177531846,0.32778301,104260.0,104250.0,0.36133006]
[1750177532060,0.30860159,104260.0,104250.0,0.38051443]
[1750177532498,0.30860159,104260.0,104250.0,0.39010629]
[1750177532921,0.28941943,104260.0,104250.0,0.14774]
[1750177533137,0.6940984,104260.0,104250.0,0.08204]
[1750177533353,0.8596984,104260.0,104250.0,0.27388652]
[1750177533570,0.8596984,104260.0,104250.0,0.08204]
[1750177535369,0.8596984,104260.0,104250.0,0.27388652]
[1750177535584,0.44542812,104260.0,104250.0,0.36846302]
[1750177535795,0.27982812,104260.0,104250.0,0.36846302]
[1750177536007,0.27982812,104260.0,104250.0,0.37805479]
[1750177536222,0.09759057,104260.0,104250.0,0.38764647]
[1750177536453,0.04177218,104260.0,104250.0,0.38764647]
[1750177536664,0.11677209,104260.0,104250.0,0.38764647]
[1750177536885,0.10718124,104260.0,104250.0,0.38764647]
[1750177537094,0.013,104260.0,104250.0,0.38764647]
[1750177537550,0.013,104260.0,104250.0,0.86976823]
[1750177537789,0.013,104260.0,104250.0,1.28403851]
[1750177538461,0.00013672,104270.0,104260.0,0.62600122]
[1750177538676,0.00013672,104270.0,104260.0,0.88780298]
[1750177539548,0.00972656,104270.0,104260.0,0.72224298]
[1750177539772,0.00972656,104270.0,104260.0,0.72324298]
[1750177539773,0.03590688,104270.0,104260.0,0.72324298]
[1750177539994,0.70601192,104270.0,104260.0,0.001]
[1750177540222,0.85391192,104270.0,104260.0,0.002]
[1750177540444,0.43964164,104270.0,104260.0,0.002]
[1750177540658,0.82311192,104270.0,104260.0,0.002]
[1750177541087,0.32322676,104270.0,104260.0,0.001]
[1750177541312,0.20141934,104260.0,104250.0,0.30066159]
[1750177541583,0.27641934,104260.0,104250.0,0.2814774]
[1750177541797,0.27641934,104260.0,104250.0,0.29106945]
[1750177542016,0.29560187,104260.0,104250.0,0.30066122]
[1750177542666,0.30360187,104260.0,104250.0,0.30166122]
[1750177543103,0.30360187,104260.0,104250.0,0.29206945]
[1750177543325,0.30360187,104260.0,104250.0,0.29406945]
[1750177543539,0.30041952,104260.0,104250.0,0.27488652]
[1750177543754,0.30041952,104260.0,104250.0,0.29407089]
[1750177543967,0.30041952,104260.0,104250.0,0.30366284]
[1750177544175,0.31001065,104260.0,104250.0,0.30366284]
[1750177544610,0.30041952,104260.0,104250.0,0.09263232]
[1750177545038,0.30041952,104260.0,104250.0,0.29407089]
[1750177545272,0.22541952,104260.0,104250.0,0.29407089]
[1750177545504,0.30041952,104260.0,104250.0,0.29407089]
[1750177545716,0.30041952,104260.0,104250.0,0.28447884]
[1750177545924,0.30041952,104260.0,104250.0,0.29407107]
[1750177546372,0.30041952,104260.0,104250.0,0.30366321]
[1750177546579,0.30041952,104260.0,104250.0,0.32284712]
[1750177546794,0.30041952,104260.0,104250.0,0.31325526]
[1750177547004,0.30041952,104260.0,104250.0,0.32284721]
[1750177547634,0.30041952,104260.0,104250.0,0.30366321]
[1750177547892,0.091,104260.0,104250.0,0.30366321]
[1750177548099,0.28522445,104260.0,104250.0,0.31325526]
[1750177548304,0.28282812,104260.0,104250.0,0.31325526]
[1750177548739,0.28282812,104260.0,104250.0,0.08304]
[1750177548740,0.96753023,104260.0,104250.0,0.08304]
[1750177548978,1.01341023,104260.0,104250.0,0.08304]
[1750177549230,0.47137588,104260.0,104250.0,0.08304]
[1750177549445,1.09704616,104260.0,104250.0,0.08304]
[1750177549660,0.88564616,104260.0,104250.0,0.08304]
[1750177549874,0.97616616,104260.0,104250.0,0.08304]
[1750177550087,1.05116616,104260.0,104250.0,0.08104]
[1750177550302,1.03516616,104260.0,104250.0,0.08104]
[1750177550509,1.03716616,104260.0,104250.0,0.08804]
[1750177550716,1.03716616,104260.0,104250.0,0.08704]
[1750177550930,0.38615412,104260.0,104250.0,0.08004]
[1750177551155,0.19182812,104260.0,104250.0,0.08004]
[1750177551372,0.26682812,104260.0,104250.0,0.11334]
[1750177551592,0.19282812,104260.0,104250.0,0.30618652]
[1750177551821,0.26782812,104260.0,104250.0,0.30418652]
[1750177552040,0.26782812,104260.0,104250.0,0.11234]
[1750177552262,0.6820984,104260.0,104250.0,0.08104]
[1750177552919,0.6810984,104260.0,104250.0,0.08004]
[1750177553137,0.6810984,104260.0,104250.0,0.08104]
[1750177553351,0.6900984,104260.0,104250.0,0.08104]
[1750177554006,1.01270288,104260.0,104250.0,0.08104]
[1750177554256,1.10894464,104260.0,104250.0,0.08104]
[1750177555974,0.94342464,104260.0,104250.0,0.08104]
[1750177556192,1.15478464,104260.0,104250.0,0.08104]
[1750177557274,1.15489227,104260.0,104250.0,0.08104]
[1750177557488,0.89832779,104260.0,104250.0,0.08104]
[1750177557703,1.06380779,104260.0,104250.0,0.08104]
[1750177561860,0.83039642,104260.0,104250.0,0.08104]
[1750177562079,0.97602954,104260.0,104250.0,0.08104]
[1750177562292,1.05102954,104260.0,104250.0,0.08104]
[1750177563999,1.02180779,104260.0,104250.0,0.08104]
[1750177564493,0.81044779,104260.0,104250.0,0.08104]
[1750177564958,1.00778779,104260.0,104250.0,0.08104]
[1750177565405,1.18163533,104250.0,104240.0,4e-05]
[1750177565626,1.27787709,104250.0,104240.0,4e-05]
[1750177565839,0.78849918,104250.0,104240.0,4e-05]
[1750177566049,0.99973918,104250.0,104240.0,4e-05]
[1750177566260,1.41411709,104250.0,104240.0,4e-05]
[1750177566479,1.48911709,104250.0,104240.0,4e-05]
[1750177566704,1.07473918,104250.0,104240.0,4e-05]
[1750177566919,1.07673918,104250.0,104240.0,0.01904]
[1750177567131,1.10600085,104250.0,104240.0,0.01904]
[1750177567569,1.45108798,104250.0,104240.0,0.01904]
[1750177567773,1.20215007,104250.0,104240.0,0.01904]
[1750177568637,1.61652798,104250.0,104240.0,0.01904]
[1750177569117,1.61752798,104250.0,104240.0,0.02704]
[1750177570190,0.35209883,104240.0,104230.0,4e-05]
[1750177570404,0.76154911,104230.0,104220.0,4e-05]
[1750177570637,0.85779087,104230.0,104220.0,4e-05]
[1750177572411,1.17686734,104210.0,104200.0,0.0161]
[1750177572637,1.4843491,104210.0,104200.0,0.01624238]
[1750177572863,1.2731091,104210.0,104200.0,0.01624238]
[1750177573107,1.58049832,104210.0,104200.0,0.01624238]
[1750177573335,1.58049832,104210.0,104200.0,0.01384238]
[1750177573799,1.36925832,104210.0,104200.0,0.01384238]
[1750177574008,1.06997119,104210.0,104200.0,0.03174427]
[1750177574221,0.85873119,104210.0,104200.0,0.03174427]
[1750177574447,1.1205968,104210.0,104200.0,0.03174427]
[1750177574655,1.53497471,104210.0,104200.0,0.03174427]
[1750177574867,1.63112393,104210.0,104200.0,0.01384238]
[1750177575075,1.21674602,104210.0,104200.0,0.01384238]
[1750177575744,1.00546602,104210.0,104200.0,0.01384238]
[1750177575963,1.1205568,104210.0,104200.0,0.01384238]
[1750177576611,1.1205568,104210.0,104180.0,0.01729619]
[1750177576612,0.26545466,104190.0,104180.0,0.01729619]
[1750177576835,0.26545466,104190.0,104180.0,0.01634619]
[1750177576836,1.20561518,104190.0,104180.0,0.01634619]
[1750177577077,1.47517518,104190.0,104180.0,0.01634619]
[1750177577301,0.9617644,104190.0,104180.0,0.01634619]
[1750177577528,0.79061518,104190.0,104180.0,0.01634619]
[1750177577757,1.00525518,104190.0,104180.0,0.01634619]
[1750177578003,0.54908258,104190.0,104180.0,0.01634619]
[1750177578219,1.03846049,104190.0,104180.0,0.01634619]
[1750177578457,1.06716049,104190.0,104180.0,0.01634619]
[1750177579079,1.16330971,104190.0,104180.0,0.01634619]
[1750177579278,1.16430971,104190.0,104180.0,0.01634619]
[1750177579757,1.13360971,104190.0,104180.0,0.01634619]
[1750177579963,1.03746049,104190.0,104180.0,0.01634619]
[1750177580893,1.07026049,104190.0,104180.0,0.01634619]
[1750177583553,1.09908649,104190.0,104180.0,0.01634619]
[1750177585288,1.03270649,104190.0,104180.0,0.01634619]
[1750177585499,1.2682063,104190.0,104180.0,0.01634619]
[1750177585711,0.56011695,104190.0,104180.0,0.01634619]
[1750177585958,0.98903571,104190.0,104180.0,0.01634619]
[1750177586178,0.43386773,104190.0,104180.0,0.01634619]
[1750177586403,0.98921964,104190.0,104180.0,0.01634619]
[1750177587753,1.02201964,104190.0,104180.0,0.01634619]
[1750177590827,1.06706049,104190.0,104180.0,0.01634619]
[1750177592370,0.21611485,104180.0,104170.0,0.32011576]
[1750177592629,1.08211452,104180.0,104170.0,0.32011576]
[1750177592849,1.05161452,104180.0,104170.0,0.32011576]
[1750177593070,0.37281576,104180.0,104170.0,0.32011576]
[1750177593281,0.88143367,104180.0,104170.0,0.35311576]
[1750177593488,0.78481572,104180.0,104170.0,0.35311576]
[1750177593702,0.95709572,104180.0,104170.0,0.35311576]
[1750177593925,0.37343781,104180.0,104170.0,0.35311576]
[1750177594144,0.279574,104180.0,104170.0,0.38621576]
[1750177594360,0.448774,104180.0,104170.0,0.5878093]
[1750177594571,0.078,104180.0,104170.0,0.6070084]
[1750177594831,0.003,104180.0,104170.0,0.62620667]
[1750177595108,0.1808384,104180.0,104170.0,0.62620667]
[1750177595330,0.003,104180.0,104170.0,0.62620667]
[1750177595547,0.003,104180.0,104170.0,1.06244843]
[1750177595975,0.001,104180.0,104170.0,1.06244843]
[1750177596414,0.003,104180.0,104170.0,1.06244843]
[1750177596640,0.38033214,104200.0,104190.0,0.27655204]
[1750177596641,0.09419302,104200.0,104190.0,0.27655204]
[1750177596853,0.11338567,104200.0,104190.0,0.28614924]
[1750177597287,0.10378893,104200.0,104190.0,0.28614924]
[1750177597503,0.11338558,104200.0,104190.0,0.28614924]
[1750177597729,0.11338567,104200.0,104190.0,0.28614924]
[1750177597952,0.01,104200.0,104190.0,0.4513267]
[1750177598159,0.027,104200.0,104190.0,0.4513267]
[1750177598373,0.12119247,104200.0,104190.0,0.4513267]
[1750177598886,0.13078894,104200.0,104190.0,0.4513267]
[1750177599159,0.04619238,104200.0,104190.0,0.4513267]
[1750177599406,0.027,104200.0,104190.0,0.7913267]
[1750177601260,0.027,104200.0,104190.0,0.9599667]
[1750177601435,0.03188096,104200.0,104190.0,0.9599267]
[1750177601640,0.02228486,104200.0,104190.0,0.9599267]
[1750177602060,0.03188096,104200.0,104190.0,0.7425267]
[1750177602259,0.04147724,104200.0,104190.0,0.7425267]
[1750177602465,0.03188096,104200.0,104190.0,0.9598467]
[1750177602675,0.02228486,104200.0,104190.0,0.9598467]
[1750177603015,0.02228486,104200.0,104190.0,1.37422461]
[1750177603734,0.02228486,104200.0,104190.0,1.38876546]
[1750177604747,0.02228486,104200.0,104190.0,0.7425267]
[1750177604946,0.02228486,104200.0,104190.0,0.9596467]
[1750177605588,0.02228486,104200.0,104190.0,0.7425267]
[1750177605797,0.02228486,104200.0,104190.0,0.9595667]
[1750177606867,0.02228486,104200.0,104190.0,1.37394461]
[1750177607074,0.26803392,104230.0,104220.0,0.0316]
[1750177607075,0.18214947,104230.0,104220.0,0.0316]
[1750177607291,0.1845458,104230.0,104220.0,0.03174246]
[1750177607743,0.1845458,104230.0,104220.0,0.00014246]
[1750177608379,0.1865458,104230.0,104220.0,0.00014246]
[1750177609135,0.60092371,104230.0,104220.0,0.00014246]
[1750177609379,0.59852738,104230.0,104220.0,0.00414246]
[1750177609598,0.63082738,104230.0,104220.0,0.00414246]
[1750177609818,1.36369518,104230.0,104220.0,0.00414246]
[1750177610030,1.39655433,104230.0,104220.0,0.00414246]
[1750177610245,1.43991218,104230.0,104220.0,0.00414246]
[1750177610464,1.42537133,104230.0,104220.0,0.00414246]
[1750177610674,1.09706914,104230.0,104220.0,0.00414246]
[1750177610885,1.23490914,104230.0,104220.0,0.00414246]
[1750177611095,1.06706914,104230.0,104220.0,0.00414246]
[1750177611307,1.23502914,104230.0,104220.0,0.00414246]
[1750177611537,1.26732914,104230.0,104220.0,0.00414246]
[1750177611812,1.36347836,104230.0,104220.0,0.00414246]
[1750177612049,1.26732914,104230.0,104220.0,0.00414246]
[1750177612263,0.85295123,104230.0,104220.0,0.00414246]
[1750177612504,1.26732914,104230.0,104220.0,0.00414246]
[1750177612909,1.26724914,104230.0,104220.0,0.00414246]
[1750177613754,1.02321855,104230.0,104220.0,0.00414246]
[1750177613965,0.99091855,104230.0,104220.0,0.00414246]
[1750177614149,1.12633855,104230.0,104220.0,0.00414246]
[1750177614931,0.61861855,104230.0,104220.0,0.00414246]
[1750177615195,0.52237679,104230.0,104220.0,0.00414246]
[1750177615453,0.10799888,104230.0,104220.0,0.03454246]
[1750177615697,0.11039521,104230.0,104220.0,0.2264442]
[1750177615926,0.10799888,104230.0,104220.0,0.23603919]
[1750177616175,0.10799888,104230.0,104220.0,0.26454679]
[1750177616378,0.10799888,104230.0,104220.0,0.2264442]
[1750177616598,0.10799888,104230.0,104220.0,0.2360391]
[1750177616812,0.12718711,104230.0,104220.0,0.25522853]
[1750177617057,0.02118786,104230.0,104220.0,0.28437605]
[1750177617266,0.21307119,104230.0,104220.0,0.2744175]
[1750177617476,0.22266535,104230.0,104220.0,0.2744175]
[1750177618118,0.02878102,104230.0,104220.0,0.2744175]
[1750177618358,0.02878102,104230.0,104220.0,0.2704175]
[1750177618561,0.03078102,104230.0,104220.0,0.2814175]
[1750177618770,0.03078102,104230.0,104220.0,0.2854175]
[1750177619187,0.040375,104230.0,104220.0,0.2854175]
[1750177619392,0.01159352,104230.0,104220.0,0.2854175]
[1750177619621,0.02118722,104230.0,104220.0,0.2854175]
[1750177619833,0.002,104230.0,104220.0,0.2854175]
[1750177620043,0.002,104230.0,104220.0,0.41215926]
[1750177620249,0.002,104230.0,104220.0,1.33385717]
[1750177620475,0.002,104230.0,104220.0,1.35311018]
[1750177620686,0.002,104230.0,104220.0,1.8182408]
[1750177620918,0.002,104230.0,104220.0,1.83278165]
[1750177621124,0.03877227,104260.0,104250.0,0.22062238]
[1750177621546,0.02918133,104260.0,104250.0,0.22062238]
[1750177621785,0.03877236,104260.0,104250.0,0.22062238]
[1750177622025,0.03877236,104260.0,104240.0,0.56062676]
[1750177622026,0.01918382,104250.0,104240.0,0.56062676]
[1750177622242,0.0287754,104250.0,104240.0,0.70422852]
[1750177622459,0.03836745,104250.0,104240.0,0.70422852]
[1750177622881,0.01918345,104250.0,104240.0,0.70422852]
[1750177623096,0.0287755,104250.0,104240.0,0.70422852]
[1750177623308,0.03836764,104250.0,104240.0,0.70422852]
[1750177623776,0.0287755,104250.0,104240.0,0.70422852]
[1750177624199,0.23021471,104250.0,104240.0,0.55103425]
[1750177624416,0.23362294,104250.0,104240.0,0.55203425]
[1750177624626,0.6384088,104250.0,104240.0,0.55203471]
[1750177625087,0.22403089,104250.0,104240.0,0.55203471]
[1750177625299,0.22403089,104250.0,104240.0,0.55205113]
[1750177625584,0.23103089,104250.0,104240.0,0.54245816]
[1750177625812,0.63581666,104250.0,104240.0,0.001]
[1750177626044,0.72094035,104250.0,104240.0,0.001]
[1750177626275,0.8933327,104250.0,104240.0,0.001]
[1750177626724,0.80820901,104250.0,104240.0,0.001]
[1750177626943,0.97540901,104250.0,104240.0,0.001]
[1750177627801,0.97524901,104250.0,104240.0,0.001]
[1750177628213,0.89909842,104250.0,104240.0,0.001]
[1750177628863,1.14643633,104250.0,104240.0,0.001]
[1750177629073,0.82820764,104250.0,104240.0,0.001]
[1750177629299,1.04252764,104250.0,104240.0,0.001]
[1750177629713,1.03552764,104250.0,104240.0,0.001]
[1750177630157,0.22068616,104220.0,104210.0,0.55111082]
[1750177630370,0.00959554,104210.0,104200.0,0.22877279]
[1750177630588,0.00959554,104210.0,104200.0,0.66501455]
[1750177630589,0.01919127,104210.0,104200.0,0.66501455]
[1750177630807,0.01919099,104210.0,104200.0,0.66501455]
[1750177631016,0.02878662,104210.0,104200.0,0.66501455]
[1750177631281,0.02878635,104210.0,104200.0,0.66501455]
[1750177631487,0.01919081,104210.0,104200.0,0.66501455]
[1750177631701,0.00714281,104210.0,104200.0,0.66601455]
[1750177631924,0.01673817,104210.0,104200.0,0.66601455]
[1750177632360,0.02633371,104210.0,104200.0,0.83273455]
[1750177632579,0.02073817,104210.0,104200.0,0.83273455]
[1750177633468,0.02333371,104210.0,104200.0,0.83173455]
[1750177633689,0.22884969,104210.0,104200.0,0.8327351]
[1750177633900,0.63363224,104210.0,104200.0,0.56017706]
[1750177634115,0.21925433,104210.0,104200.0,0.56017706]
[1750177634322,0.21525433,104210.0,104200.0,0.56977389]
[1750177634542,0.21525433,104210.0,104180.0,0.20150178]
[1750177634543,0.00959711,104190.0,104180.0,0.20150178]
[1750177634763,0.22072861,104200.0,104190.0,0.54155466]
[1750177634984,0.05019321,104200.0,104190.0,0.55115223]
[1750177635219,0.05978995,104200.0,104190.0,0.57034691]
[1750177635442,0.63834088,104210.0,104200.0,0.22072851]
[1750177635443,0.00014281,104210.0,104200.0,0.22072851]
[1750177635665,0.00414281,104210.0,104200.0,1.27910446]
[1750177635890,0.00414281,104210.0,104200.0,0.86472655]
[1750177636101,0.00014281,104210.0,104200.0,0.86472655]
[1750177636580,0.00014281,104210.0,104200.0,1.28010446]
[1750177636581,0.00414281,104210.0,104200.0,1.28010446]
[1750177636999,0.00414281,104210.0,104200.0,0.86572655]
[1750177638295,0.00814281,104210.0,104200.0,0.86572655]
[1750177638508,0.03692944,104210.0,104200.0,0.67997408]
[1750177638712,0.03692907,104210.0,104200.0,0.83420692]
[1750177638963,0.04652462,104210.0,104200.0,0.65797064]
[1750177639169,0.07792452,104210.0,104200.0,0.83408692]
[1750177639597,0.00814281,104210.0,104200.0,0.69966692]
[1750177639815,0.00814281,104210.0,104200.0,0.94348692]
[1750177640023,0.00814281,104210.0,104200.0,1.35786483]
[1750177640257,0.00814281,104210.0,104200.0,0.91258692]
[1750177641352,0.01773798,104210.0,104200.0,0.69966692]
[1750177641581,0.02733325,104210.0,104200.0,0.83404692]
[1750177641804,0.01773798,104210.0,104200.0,0.83404692]
[1750177642026,0.00814281,104210.0,104200.0,0.86464692]
[1750177645619,0.01773808,104210.0,104200.0,0.83404692]
[1750177646062,0.02733344,104210.0,104200.0,0.83404692]
[1750177646514,0.00814281,104210.0,104200.0,0.83404692]
[1750177647208,0.00814281,104210.0,104200.0,0.86518692]
[1750177649124,0.02733343,104210.0,104200.0,0.83408692]
[1750177649354,0.05793325,104210.0,104200.0,0.66760692]
[1750177649567,0.03874281,104210.0,104200.0,0.88184692]
[1750177649782,0.00814281,104210.0,104200.0,0.88184692]
[1750177649996,0.00814281,104210.0,104200.0,0.91434692]
[1750177650687,0.01773817,104210.0,104200.0,0.88184692]
[1750177650913,0.01773817,104210.0,104200.0,0.71404692]
[1750177651135,0.04783817,104210.0,104200.0,0.83556692]
[1750177651376,0.04783808,104210.0,104200.0,0.83556692]
[1750177651624,0.07662462,104210.0,104200.0,0.83556692]
[1750177651862,0.03824281,104210.0,104200.0,0.83556692]
[1750177652090,0.00814281,104210.0,104200.0,0.86606692]
[1750177653010,0.00814281,104210.0,104200.0,1.31324483]
[1750177653695,0.05188713,104230.0,104220.0,0.56068588]
[1750177653696,0.04229343,104230.0,104220.0,0.56068588]
[1750177653924,0.0327,104230.0,104220.0,0.72868588]
[1750177654381,0.09177826,104240.0,104230.0,0.56066471]
[1750177654594,0.09177816,104240.0,104230.0,0.56066471]
[1750177654804,0.09177816,104240.0,104230.0,0.57790845]
[1750177655033,0.14744236,104250.0,104240.0,0.22064354]
[1750177655271,0.04952594,104250.0,104240.0,0.38860354]
[1750177655509,0.04952594,104250.0,104240.0,0.4848453]
[1750177655774,0.00014286,104250.0,104240.0,0.8248453]
[1750177655986,0.00014286,104250.0,104240.0,1.27062321]
[1750177656200,0.00014286,104250.0,104240.0,0.8562453]
[1750177657303,0.00014286,104250.0,104240.0,1.10366321]
[1750177657525,0.00014286,104250.0,104240.0,1.31834321]
[1750177657773,0.00214286,104250.0,104240.0,0.6892853]
[1750177657966,0.00214286,104250.0,104240.0,0.8725653]
[1750177660027,0.01173445,104250.0,104240.0,0.8724453]
[1750177660459,0.00214286,104250.0,104240.0,0.8724453]
[1750177660696,0.01173435,104250.0,104240.0,0.8724453]
[1750177661042,0.00214286,104250.0,104240.0,0.8724453]
[1750177663327,0.00214286,104250.0,104240.0,0.8724853]
[1750177664233,0.00214286,104250.0,104240.0,0.8722853]
[1750177664440,0.00214286,104250.0,104240.0,0.8723653]
[1750177666030,0.00214286,104250.0,104240.0,0.9035653]
[1750177667216,0.00214286,104250.0,104240.0,0.9034853]
[1750177667435,0.01173454,104250.0,104240.0,0.6579253]
[1750177667705,0.00214286,104250.0,104240.0,0.8722053]
[1750177667913,0.00214286,104250.0,104240.0,0.9024053]
[1750177668551,0.00214286,104250.0,104240.0,0.9024053]
[1750177668760,0.01173435,104250.0,104240.0,0.9024053]
[1750177668983,0.0406914,104260.0,104250.0,0.55103089]
[1750177669206,0.24211148,104260.0,104250.0,0.54143884]
[1750177669445,0.23252072,104260.0,104250.0,0.55103107]
[1750177669686,0.23252072,104260.0,104250.0,0.50784]
[1750177669931,0.26322072,104260.0,104250.0,0.50776]
[1750177670695,0.26522072,104260.0,104250.0,0.50876]
[1750177671452,0.26722072,104260.0,104250.0,0.50876]
[1750177671704,0.04469067,104260.0,104250.0,0.72938238]
[1750177671963,0.004,104260.0,104250.0,1.27240205]
[1750177672216,0.004,104260.0,104250.0,1.30320205]
[1750177672712,0.004,104260.0,104250.0,1.3177429]
[1750177673479,0.004,104260.0,104250.0,1.1499829]
[1750177673748,0.004,104260.0,104250.0,1.3175029]
[1750177674537,0.002,104260.0,104250.0,1.3165029]
[1750177674793,0.31312692,104290.0,104280.0,0.57014811]
[1750177675119,0.12149565,104290.0,104280.0,0.73758811]
[1750177675358,0.08939565,104290.0,104280.0,0.73758811]
[1750177676129,0.07021892,104290.0,104280.0,0.73758811]
[1750177676745,0.02114283,104290.0,104280.0,0.86992987]
[1750177676974,0.02114283,104290.0,104280.0,1.33154863]
[1750177677442,0.02114283,104290.0,104280.0,2.23139763]
[1750177677673,0.02014283,104290.0,104280.0,2.27443763]
[1750177677888,0.02014283,104290.0,104280.0,2.27243763]
[1750177678392,0.02014283,104290.0,104280.0,2.27231763]
[1750177678631,0.02114283,104290.0,104280.0,2.27231763]
[1750177678859,0.02114283,104290.0,104280.0,2.32231763]
[1750177679094,0.02114283,104290.0,104280.0,2.37231763]
[1750177679337,0.02114283,104290.0,104280.0,2.32231763]
[1750177679572,0.00990596,104290.0,104280.0,2.37235763]
[1750177679810,0.00890596,104290.0,104280.0,1.95797972]